[Event "Titled Tuesday Blitz April 05 Early 2022"]
[White "Petrova, Irina"]
[Black "Baker, Chris W"]
[WhiteFideId "14124122"]
[BlackFideId "401676"]
[WhiteElo "1993"]
[BlackElo "2137"]
[Result "0-1"]
[Round "09"]
[TimeControl "180+1"]
[Date "2022.04.05"]
[WhiteClock "0:00:07"]
[BlackClock "0:00:23"]

1. e4 {[%clk 0:03:00]}  e5 {[%clk 0:02:56]} 2. Nf3 {[%clk 0:03:00]}  Nc6 {[%clk 0:02:55]} 3. Bb5 {[%clk 0:03:00]}  a6 {[%clk 0:02:54]} 4. Ba4 {[%clk 0:02:59]}  Nf6 {[%clk 0:02:54]} 5. d3 {[%clk 0:02:58]}  b5 {[%clk 0:02:53]} 6. Bb3 {[%clk 0:02:58]}  Be7 {[%clk 0:02:54]} 7. Nc3 {[%clk 0:02:54]}  h6 {[%clk 0:02:51]} 8. Nd5 {[%clk 0:02:42]}  d6 {[%clk 0:02:51]} 9. Nxe7 {[%clk 0:02:39]}  Nxe7 {[%clk 0:02:43]} 10. h3 {[%clk 0:02:31]}  O-O {[%clk 0:02:43]} 11. a4 {[%clk 0:02:20]}  Be6 {[%clk 0:02:40]} 12. c3 {[%clk 0:02:05]}  c5 {[%clk 0:02:27]} 13. Bxe6 {[%clk 0:01:53]}  fxe6 {[%clk 0:02:26]} 14. axb5 {[%clk 0:01:54]}  axb5 {[%clk 0:02:25]} 15. Rxa8 {[%clk 0:01:54]}  Qxa8 {[%clk 0:02:24]} 16. Qb3 {[%clk 0:01:55]}  c4 {[%clk 0:02:19]} 17. Qxb5 {[%clk 0:01:49]}  cxd3 {[%clk 0:02:17]} 18. Qxd3 {[%clk 0:01:50]}  Qxe4+ {[%clk 0:02:05]} 19. Qxe4 {[%clk 0:01:50]}  Nxe4 {[%clk 0:02:05]} 20. O-O {[%clk 0:01:51]}  Nc6 {[%clk 0:01:54]} 21. Nd2 {[%clk 0:01:50]}  Nxd2 {[%clk 0:01:49]} 22. Bxd2 {[%clk 0:01:51]}  e4 {[%clk 0:01:37]} 23. b4 {[%clk 0:01:49]}  d5 {[%clk 0:01:35]} 24. Rb1 {[%clk 0:01:44]}  Rb8 {[%clk 0:01:23]} 25. b5 {[%clk 0:01:42]}  Na5 {[%clk 0:01:22]} 26. Bf4 {[%clk 0:01:35]}  Rb7 {[%clk 0:01:22]} 27. b6 {[%clk 0:01:29]}  Nc4 {[%clk 0:01:22]} 28. Bc7 {[%clk 0:01:26]}  Kf7 {[%clk 0:01:21]} 29. Rb4 {[%clk 0:01:14]}  Ke8 {[%clk 0:01:20]} 30. Kf1 {[%clk 0:01:00]}  Kd7 {[%clk 0:01:20]} 31. Ke2 {[%clk 0:00:59]}  Kc6 {[%clk 0:01:20]} 32. Rxc4+ {[%clk 0:00:45]}  dxc4 {[%clk 0:01:19]} 33. Ke3 {[%clk 0:00:45]}  Kd5 {[%clk 0:01:09]} 34. Kf4 {[%clk 0:00:45]}  g6 {[%clk 0:01:06]} 35. h4 {[%clk 0:00:40]}  e5+ {[%clk 0:00:58]} 36. Ke3 {[%clk 0:00:31]}  g5 {[%clk 0:00:51]} 37. hxg5 {[%clk 0:00:20]}  hxg5 {[%clk 0:00:51]} 38. g4 {[%clk 0:00:20]}  Kc6 {[%clk 0:00:30]} 39. Kxe4 {[%clk 0:00:15]}  Kb5 {[%clk 0:00:30]} 40. Kxe5 {[%clk 0:00:16]}  Ka4 {[%clk 0:00:31]} 41. Kf5 {[%clk 0:00:16]}  Kb3 {[%clk 0:00:30]} 42. Be5 {[%clk 0:00:15]}  Rxb6 {[%clk 0:00:29]} 43. Kxg5 {[%clk 0:00:16]}  Rb5 {[%clk 0:00:27]} 44. f4 {[%clk 0:00:07]}  Kc2 {[%clk 0:00:23]} 0-1


[Site "https://www.chess.com"]

[Event "Titled Tuesday Blitz April 05 Early 2022"]
[White "Pischal, Yulia"]
[Black "Muradov, Soltan"]
[WhiteFideId "14102390"]
[BlackFideId "14002108"]
[WhiteElo "1931"]
[BlackElo "1854"]
[Result "0-1"]
[Round "09"]
[TimeControl "180+1"]
[Date "2022.04.05"]
[WhiteClock "0:00:35"]
[BlackClock "0:00:18"]

1. e4 {[%clk 0:03:00]}  e5 {[%clk 0:02:59]} 2. Nc3 {[%clk 0:02:59]}  Nc6 {[%clk 0:02:59]} 3. g3 {[%clk 0:02:59]}  g6 {[%clk 0:02:50]} 4. Bg2 {[%clk 0:02:59]}  Bg7 {[%clk 0:02:51]} 5. Nge2 {[%clk 0:02:59]}  Nge7 {[%clk 0:02:52]} 6. O-O {[%clk 0:02:59]}  d6 {[%clk 0:02:51]} 7. f4 {[%clk 0:02:58]}  f5 {[%clk 0:02:52]} 8. exf5 {[%clk 0:02:58]}  Nxf5 {[%clk 0:02:52]} 9. d3 {[%clk 0:02:57]}  O-O {[%clk 0:02:51]} 10. Bd2 {[%clk 0:02:51]}  Bd7 {[%clk 0:02:51]} 11. Ne4 {[%clk 0:02:51]}  exf4 {[%clk 0:02:49]} 12. Nxf4 {[%clk 0:02:50]}  Nfd4 {[%clk 0:02:21]} 13. c3 {[%clk 0:02:47]}  Nf5 {[%clk 0:02:22]} 14. Qb3+ {[%clk 0:02:44]}  Kh8 {[%clk 0:02:22]} 15. Ne6 {[%clk 0:02:36]}  Bxe6 {[%clk 0:02:22]} 16. Qxe6 {[%clk 0:02:36]}  Qe7 {[%clk 0:02:16]} 17. Qb3 {[%clk 0:02:32]}  Rab8 {[%clk 0:02:08]} 18. Rae1 {[%clk 0:02:31]}  Qd7 {[%clk 0:02:08]} 19. Ng5 {[%clk 0:02:28]}  Ne5 {[%clk 0:02:01]} 20. d4 {[%clk 0:02:23]}  Nc6 {[%clk 0:01:54]} 21. Bh3 {[%clk 0:02:14]}  Na5 {[%clk 0:01:45]} 22. Qe6 {[%clk 0:02:07]}  Qxe6 {[%clk 0:01:44]} 23. Nxe6 {[%clk 0:02:07]}  Rf7 {[%clk 0:01:44]} 24. Bg5 {[%clk 0:02:02]}  h6 {[%clk 0:01:26]} 25. Bxf5 {[%clk 0:01:43]}  Rxf5 {[%clk 0:01:19]} 26. Rxf5 {[%clk 0:01:38]}  gxf5 {[%clk 0:01:20]} 27. Nxg7 {[%clk 0:01:30]}  Kxg7 {[%clk 0:01:20]} 28. Re7+ {[%clk 0:01:30]}  Kg6 {[%clk 0:01:13]} 29. Bf4 {[%clk 0:01:23]}  Rc8 {[%clk 0:00:39]} 30. Re6+ {[%clk 0:01:22]}  Kf7 {[%clk 0:00:39]} 31. Rxh6 {[%clk 0:01:22]}  Nc4 {[%clk 0:00:40]} 32. b3 {[%clk 0:01:19]}  Na3 {[%clk 0:00:41]} 33. Rh7+ {[%clk 0:01:15]}  Kg6 {[%clk 0:00:40]} 34. Rh6+ {[%clk 0:01:15]}  Kf7 {[%clk 0:00:40]} 35. Bd2 {[%clk 0:01:10]}  Re8 {[%clk 0:00:38]} 36. Kf2 {[%clk 0:01:10]}  Kg7 {[%clk 0:00:36]} 37. Rh4 {[%clk 0:01:08]}  a5 {[%clk 0:00:34]} 38. Rf4 {[%clk 0:01:07]}  Kg6 {[%clk 0:00:34]} 39. h4 {[%clk 0:01:02]}  a4 {[%clk 0:00:34]} 40. Kf3 {[%clk 0:00:58]}  Nb1 {[%clk 0:00:32]} 41. Be3 {[%clk 0:00:45]}  Nxc3 {[%clk 0:00:32]} 42. bxa4 {[%clk 0:00:45]}  Nd5 {[%clk 0:00:31]} 43. h5+ {[%clk 0:00:40]}  Kf6 {[%clk 0:00:29]} 44. h6 {[%clk 0:00:36]}  Rxe3+ {[%clk 0:00:25]} 45. Kf2 {[%clk 0:00:36]}  Nxf4 {[%clk 0:00:16]} 46. Kxe3 {[%clk 0:00:35]}  Nd5+ {[%clk 0:00:16]} 47. Kd3 {[%clk 0:00:35]}  Kg6 {[%clk 0:00:16]} 48. Kc4 {[%clk 0:00:35]}  c6 {[%clk 0:00:17]} 49. a5 {[%clk 0:00:35]}  Kxh6 {[%clk 0:00:17]} 50. a6 {[%clk 0:00:36]}  bxa6 {[%clk 0:00:18]} 51. Kb3 {[%clk 0:00:34]}  Kg5 {[%clk 0:00:18]} 52. Ka4 {[%clk 0:00:35]}  Kg4 {[%clk 0:00:19]} 53. Ka5 {[%clk 0:00:36]}  Kxg3 {[%clk 0:00:19]} 54. Kxa6 {[%clk 0:00:36]}  f4 {[%clk 0:00:20]} 55. Kb7 {[%clk 0:00:37]}  Nb4 {[%clk 0:00:20]} 56. Kc7 {[%clk 0:00:37]}  f3 {[%clk 0:00:20]} 57. Kxd6 {[%clk 0:00:37]}  Nxa2 {[%clk 0:00:20]} 58. Kxc6 {[%clk 0:00:37]}  f2 {[%clk 0:00:21]} 59. d5 {[%clk 0:00:38]}  f1=Q {[%clk 0:00:22]} 60. d6 {[%clk 0:00:39]}  Nc3 {[%clk 0:00:21]} 61. d7 {[%clk 0:00:39]}  Qb5+ {[%clk 0:00:22]} 62. Kd6 {[%clk 0:00:39]}  Qd5+ {[%clk 0:00:22]} 63. Ke7 {[%clk 0:00:39]}  Qe5+ {[%clk 0:00:22]} 64. Kf8 {[%clk 0:00:39]}  Qd6+ {[%clk 0:00:22]} 65. Ke8 {[%clk 0:00:39]}  Qe6+ {[%clk 0:00:22]} 66. Kd8 {[%clk 0:00:38]}  Nb5 {[%clk 0:00:18]} 67. Kc8 {[%clk 0:00:37]}  Qa6+ {[%clk 0:00:18]} 68. Kd8 {[%clk 0:00:36]}  Qd6 {[%clk 0:00:16]} 69. Ke8 {[%clk 0:00:35]}  Nc7+ {[%clk 0:00:17]} 70. Kf7 {[%clk 0:00:35]}  Qxd7+ {[%clk 0:00:17]} 71. Kf8 {[%clk 0:00:35]}  Qd1 {[%clk 0:00:18]} 0-1


[Site "https://www.chess.com"]

[Event "Titled Tuesday Blitz April 05 Early 2022"]
[White "Politov, Pavel Y."]
[Black "Simonovic, Miroslav"]
[WhiteFideId "24110515"]
[BlackFideId "919152"]
[WhiteElo "2090"]
[BlackElo "2043"]
[Result "1-0"]
[Round "09"]
[TimeControl "180+1"]
[Date "2022.04.05"]
[WhiteClock "0:00:14"]
[BlackClock "0:00:19"]

1. e4 {[%clk 0:03:00]}  c5 {[%clk 0:03:00]} 2. Nf3 {[%clk 0:02:58]}  Nc6 {[%clk 0:02:59]} 3. d4 {[%clk 0:02:57]}  cxd4 {[%clk 0:03:00]} 4. Nxd4 {[%clk 0:02:57]}  e5 {[%clk 0:03:01]} 5. Nb5 {[%clk 0:02:55]}  d6 {[%clk 0:03:01]} 6. c4 {[%clk 0:02:53]}  Be6 {[%clk 0:03:00]} 7. N1c3 {[%clk 0:02:50]}  a6 {[%clk 0:03:00]} 8. Na3 {[%clk 0:02:49]}  Rc8 {[%clk 0:03:01]} 9. Be3 {[%clk 0:02:46]}  Be7 {[%clk 0:03:01]} 10. Be2 {[%clk 0:02:43]}  Nf6 {[%clk 0:03:01]} 11. f3 {[%clk 0:02:41]}  O-O {[%clk 0:03:01]} 12. O-O {[%clk 0:02:41]}  Na5 {[%clk 0:03:02]} 13. b3 {[%clk 0:02:30]}  b5 {[%clk 0:03:01]} 14. Nd5 {[%clk 0:02:29]}  Bxd5 {[%clk 0:02:51]} 15. cxd5 {[%clk 0:02:23]}  Nd7 {[%clk 0:02:38]} 16. Nc2 {[%clk 0:02:20]}  f5 {[%clk 0:02:22]} 17. Nb4 {[%clk 0:02:17]}  fxe4 {[%clk 0:02:12]} 18. fxe4 {[%clk 0:02:16]}  Rxf1+ {[%clk 0:02:11]} 19. Qxf1 {[%clk 0:02:13]}  Nc5 {[%clk 0:02:01]} 20. Bd3 {[%clk 0:01:57]}  Bg5 {[%clk 0:01:40]} 21. Qe2 {[%clk 0:01:52]}  Bxe3+ {[%clk 0:00:52]} 22. Qxe3 {[%clk 0:01:52]}  Nab7 {[%clk 0:00:50]} 23. Nc6 {[%clk 0:01:49]}  Qd7 {[%clk 0:00:44]} 24. Rf1 {[%clk 0:01:44]}  Rf8 {[%clk 0:00:40]} 25. Rxf8+ {[%clk 0:01:42]}  Kxf8 {[%clk 0:00:41]} 26. Be2 {[%clk 0:01:35]}  Qf7 {[%clk 0:00:36]} 27. Bg4 {[%clk 0:01:32]}  Qf4 {[%clk 0:00:28]} 28. Qxf4+ {[%clk 0:01:24]}  exf4 {[%clk 0:00:29]} 29. b4 {[%clk 0:01:09]}  Nxe4 {[%clk 0:00:28]} 30. Bc8 {[%clk 0:01:08]}  Nc3 {[%clk 0:00:20]} 31. Bxb7 {[%clk 0:01:06]}  Nxd5 {[%clk 0:00:20]} 32. Bxa6 {[%clk 0:01:01]}  Nc3 {[%clk 0:00:20]} 33. a3 {[%clk 0:00:57]}  d5 {[%clk 0:00:19]} 34. Nd4 {[%clk 0:00:55]}  Nb1 {[%clk 0:00:17]} 35. Nxb5 {[%clk 0:00:50]}  Ke7 {[%clk 0:00:18]} 36. a4 {[%clk 0:00:48]}  g5 {[%clk 0:00:17]} 37. Nd4 {[%clk 0:00:46]}  Kd6 {[%clk 0:00:14]} 38. Kf2 {[%clk 0:00:40]}  Nc3 {[%clk 0:00:13]} 39. Nb5+ {[%clk 0:00:38]}  Nxb5 {[%clk 0:00:13]} 40. Bxb5 {[%clk 0:00:39]}  h5 {[%clk 0:00:12]} 41. a5 {[%clk 0:00:39]}  d4 {[%clk 0:00:12]} 42. Ke2 {[%clk 0:00:38]}  g4 {[%clk 0:00:11]} 43. Kd3 {[%clk 0:00:38]}  h4 {[%clk 0:00:12]} 44. Ke4 {[%clk 0:00:20]}  f3 {[%clk 0:00:11]} 45. gxf3 {[%clk 0:00:14]}  g3 {[%clk 0:00:10]} 46. hxg3 {[%clk 0:00:14]}  h3 {[%clk 0:00:11]} 47. Bf1 {[%clk 0:00:14]}  h2 {[%clk 0:00:11]} 48. Bg2 {[%clk 0:00:14]}  d3 {[%clk 0:00:12]} 49. Kxd3 {[%clk 0:00:14]}  Kd5 {[%clk 0:00:13]} 50. g4 {[%clk 0:00:14]}  Ke5 {[%clk 0:00:13]} 51. a6 {[%clk 0:00:13]}  Kf4 {[%clk 0:00:14]} 52. a7 {[%clk 0:00:12]}  Kg3 {[%clk 0:00:15]} 53. Bh1 {[%clk 0:00:12]}  Kf2 {[%clk 0:00:15]} 54. a8=Q {[%clk 0:00:12]}  Kg1 {[%clk 0:00:16]} 55. f4 {[%clk 0:00:11]}  Kf2 {[%clk 0:00:16]} 56. g5 {[%clk 0:00:12]}  Ke1 {[%clk 0:00:17]} 57. g6 {[%clk 0:00:12]}  Kd1 {[%clk 0:00:17]} 58. g7 {[%clk 0:00:13]}  Kc1 {[%clk 0:00:18]} 59. g8=Q {[%clk 0:00:14]}  Kb2 {[%clk 0:00:18]} 60. Qga2+ {[%clk 0:00:13]}  Kc1 {[%clk 0:00:19]} 61. Qc2# {[%clk 0:00:14]} 1-0


[Site "https://www.chess.com"]

[Event "Titled Tuesday Blitz April 05 Early 2022"]
[White "Polster, Christian"]
[Black "Ardila, Oscar Humberto"]
[WhiteFideId "12965081"]
[BlackFideId "4404742"]
[WhiteElo "2331"]
[BlackElo "1983"]
[Result "0-1"]
[Round "09"]
[TimeControl "180+1"]
[Date "2022.04.05"]
[WhiteClock "0:00:01"]
[BlackClock "0:00:22"]

1. e4 {[%clk 0:03:00]}  e5 {[%clk 0:02:59]} 2. Nf3 {[%clk 0:02:57]}  Nf6 {[%clk 0:02:55]} 3. Bc4 {[%clk 0:02:56]}  Nxe4 {[%clk 0:02:54]} 4. Nc3 {[%clk 0:02:56]}  Nf6 {[%clk 0:02:53]} 5. Nxe5 {[%clk 0:02:51]}  d5 {[%clk 0:02:53]} 6. Bb3 {[%clk 0:02:51]}  Be7 {[%clk 0:02:53]} 7. d4 {[%clk 0:02:51]}  O-O {[%clk 0:02:53]} 8. O-O {[%clk 0:02:50]}  Bf5 {[%clk 0:02:53]} 9. Bg5 {[%clk 0:02:49]}  c6 {[%clk 0:02:52]} 10. Re1 {[%clk 0:02:37]}  Nbd7 {[%clk 0:02:46]} 11. Qf3 {[%clk 0:02:11]}  Bg6 {[%clk 0:02:44]} 12. Nxd7 {[%clk 0:01:53]}  Qxd7 {[%clk 0:02:43]} 13. Ne2 {[%clk 0:01:44]}  Rfe8 {[%clk 0:02:17]} 14. Nf4 {[%clk 0:01:35]}  Be4 {[%clk 0:02:15]} 15. Qg3 {[%clk 0:01:32]}  Qf5 {[%clk 0:02:04]} 16. f3 {[%clk 0:01:18]}  Bd6 {[%clk 0:01:39]} 17. Bxf6 {[%clk 0:00:18]}  Qxf6 {[%clk 0:01:34]} 18. fxe4 {[%clk 0:00:10]}  Bxf4 {[%clk 0:01:30]} 19. Qd3 {[%clk 0:00:10]}  Qh6 {[%clk 0:01:27]} 20. exd5 {[%clk 0:00:08]}  Qxh2+ {[%clk 0:01:24]} 21. Kf2 {[%clk 0:00:08]}  Qh4+ {[%clk 0:00:52]} 22. Kf1 {[%clk 0:00:04]}  Bg3 {[%clk 0:00:48]} 23. Re3 {[%clk 0:00:01]}  Qh1+ {[%clk 0:00:47]} 24. Ke2 {[%clk 0:00:02]}  Qxg2+ {[%clk 0:00:45]} 25. Kd1 {[%clk 0:00:02]}  Qg1+ {[%clk 0:00:42]} 26. Kd2 {[%clk 0:00:02]}  Qxa1 {[%clk 0:00:32]} 27. Rxe8+ {[%clk 0:00:01]}  Rxe8 {[%clk 0:00:31]} 28. Qxg3 {[%clk 0:00:02]}  Qxb2 {[%clk 0:00:25]} 29. dxc6 {[%clk 0:00:02]}  Qxd4+ {[%clk 0:00:25]} 30. Kc1 {[%clk 0:00:01]}  bxc6 {[%clk 0:00:23]} 31. a4 {[%clk 0:00:01]}  c5 {[%clk 0:00:22]} 0-1


[Site "https://www.chess.com"]

[Event "Titled Tuesday Blitz April 05 Early 2022"]
[White "Prieto Aranguren, Alain"]
[Black "Piesik, Piotr"]
[WhiteFideId "2268906"]
[BlackFideId "1136194"]
[WhiteElo "2235"]
[BlackElo "2190"]
[Result "0-1"]
[Round "09"]
[TimeControl "180+1"]
[Date "2022.04.05"]
[WhiteClock "0:02:33"]
[BlackClock "0:02:44"]

1. d4 {[%clk 0:02:58]}  c5 {[%clk 0:02:59]} 2. d5 {[%clk 0:02:58]}  e5 {[%clk 0:02:59]} 3. Nc3 {[%clk 0:02:58]}  d6 {[%clk 0:03:00]} 4. e4 {[%clk 0:02:58]}  Be7 {[%clk 0:03:00]} 5. Be2 {[%clk 0:02:57]}  Bg5 {[%clk 0:03:00]} 6. Bxg5 {[%clk 0:02:54]}  Qxg5 {[%clk 0:03:00]} 7. h4 {[%clk 0:02:55]}  Qd8 {[%clk 0:03:01]} 8. h5 {[%clk 0:02:55]}  h6 {[%clk 0:03:01]} 9. Nh3 {[%clk 0:02:55]}  Nf6 {[%clk 0:03:01]} 10. Qd2 {[%clk 0:02:53]}  a6 {[%clk 0:02:59]} 11. a4 {[%clk 0:02:53]}  Nbd7 {[%clk 0:02:59]} 12. g4 {[%clk 0:02:52]}  Nh7 {[%clk 0:02:58]} 13. f3 {[%clk 0:02:51]}  Qh4+ {[%clk 0:02:56]} 14. Nf2 {[%clk 0:02:50]}  Qg5 {[%clk 0:02:56]} 15. Qxg5 {[%clk 0:02:50]}  Nxg5 {[%clk 0:02:57]} 16. O-O-O {[%clk 0:02:49]}  Ke7 {[%clk 0:02:51]} 17. Nh3 {[%clk 0:02:46]}  Nxh3 {[%clk 0:02:50]} 18. Rxh3 {[%clk 0:02:45]}  Nf6 {[%clk 0:02:50]} 19. Rg1 {[%clk 0:02:44]}  Nh7 {[%clk 0:02:50]} 20. Bc4 {[%clk 0:02:42]}  Bd7 {[%clk 0:02:47]} 21. a5 {[%clk 0:02:42]}  Ng5 {[%clk 0:02:44]} 22. Nd1 {[%clk 0:02:33]}  Nxh3 {[%clk 0:02:44]} 0-1


[Site "https://www.chess.com"]

[Event "Titled Tuesday Blitz April 05 Early 2022"]
[White "Rosenberg, Evan S"]
[Black "Avazkhonov, Alikhon"]
[WhiteFideId "2019299"]
[BlackFideId "14208504"]
[WhiteElo "2268"]
[BlackElo "1739"]
[Result "1-0"]
[Round "09"]
[TimeControl "180+1"]
[Date "2022.04.05"]
[WhiteClock "0:00:47"]
[BlackClock "0:00:04"]

1. d4 {[%clk 0:02:57]}  d5 {[%clk 0:02:58]} 2. Nf3 {[%clk 0:02:56]}  e6 {[%clk 0:02:49]} 3. c4 {[%clk 0:02:55]}  c6 {[%clk 0:02:48]} 4. Nc3 {[%clk 0:02:54]}  dxc4 {[%clk 0:02:48]} 5. a4 {[%clk 0:02:46]}  Nf6 {[%clk 0:02:46]} 6. e4 {[%clk 0:02:43]}  Bb4 {[%clk 0:02:44]} 7. Bxc4 {[%clk 0:02:39]}  Nxe4 {[%clk 0:02:40]} 8. O-O {[%clk 0:02:40]}  Bxc3 {[%clk 0:02:28]} 9. bxc3 {[%clk 0:02:41]}  Nxc3 {[%clk 0:02:28]} 10. Qd3 {[%clk 0:02:33]}  Nd5 {[%clk 0:02:28]} 11. Ba3 {[%clk 0:02:33]}  Nd7 {[%clk 0:02:24]} 12. Ne5 {[%clk 0:02:29]}  Nxe5 {[%clk 0:02:19]} 13. dxe5 {[%clk 0:02:30]}  Qg5 {[%clk 0:01:41]} 14. Bxd5 {[%clk 0:02:13]}  exd5 {[%clk 0:01:40]} 15. f4 {[%clk 0:02:13]}  Qf5 {[%clk 0:01:38]} 16. Qb3 {[%clk 0:02:01]}  Qe4 {[%clk 0:01:13]} 17. Rae1 {[%clk 0:01:46]}  Qc4 {[%clk 0:01:12]} 18. Qd1 {[%clk 0:01:35]}  Bf5 {[%clk 0:01:08]} 19. Bd6 {[%clk 0:01:31]}  O-O-O {[%clk 0:01:04]} 20. a5 {[%clk 0:01:28]}  Be4 {[%clk 0:00:48]} 21. Qg4+ {[%clk 0:01:23]}  Rd7 {[%clk 0:00:42]} 22. Qxg7 {[%clk 0:01:22]}  Re8 {[%clk 0:00:36]} 23. Qg4 {[%clk 0:01:19]}  Qd4+ {[%clk 0:00:15]} 24. Kh1 {[%clk 0:01:18]}  Qd2 {[%clk 0:00:14]} 25. Re2 {[%clk 0:01:15]}  Qxa5 {[%clk 0:00:10]} 26. Rc1 {[%clk 0:01:06]}  Qd8 {[%clk 0:00:05]} 27. Qh3 {[%clk 0:00:55]}  Rg8 {[%clk 0:00:05]} 28. Qb3 {[%clk 0:00:49]}  f5 {[%clk 0:00:04]} 29. Rxc6+ {[%clk 0:00:47]} 1-0


[Site "https://www.chess.com"]

[Event "Titled Tuesday Blitz April 05 Early 2022"]
[White "Sahil, Tickoo"]
[Black "Alboredo, Julia"]
[WhiteFideId "5019710"]
[BlackFideId "2124807"]
[WhiteElo "2099"]
[BlackElo "2041"]
[Result "0-1"]
[Round "09"]
[TimeControl "180+1"]
[Date "2022.04.05"]
[WhiteClock "0:00:22"]
[BlackClock "0:00:12"]

1. d4 {[%clk 0:03:00]}  Nf6 {[%clk 0:02:59]} 2. c4 {[%clk 0:03:00]}  g6 {[%clk 0:02:58]} 3. Nc3 {[%clk 0:02:59]}  Bg7 {[%clk 0:02:58]} 4. e4 {[%clk 0:02:59]}  d6 {[%clk 0:02:58]} 5. Nf3 {[%clk 0:02:58]}  O-O {[%clk 0:02:58]} 6. Be2 {[%clk 0:02:58]}  e5 {[%clk 0:02:58]} 7. O-O {[%clk 0:02:53]}  Nc6 {[%clk 0:02:58]} 8. dxe5 {[%clk 0:02:51]}  dxe5 {[%clk 0:02:55]} 9. Bg5 {[%clk 0:02:50]}  Qxd1 {[%clk 0:02:50]} 10. Raxd1 {[%clk 0:02:49]}  Bg4 {[%clk 0:02:50]} 11. Nd5 {[%clk 0:02:30]}  Nxd5 {[%clk 0:02:32]} 12. cxd5 {[%clk 0:02:24]}  Bxf3 {[%clk 0:02:21]} 13. Bxf3 {[%clk 0:02:23]}  Nd4 {[%clk 0:02:21]} 14. Be3 {[%clk 0:02:20]}  c6 {[%clk 0:01:52]} 15. dxc6 {[%clk 0:02:18]}  bxc6 {[%clk 0:01:50]} 16. Rd2 {[%clk 0:02:13]}  Rab8 {[%clk 0:01:40]} 17. Rc1 {[%clk 0:02:05]}  Rb6 {[%clk 0:01:36]} 18. b3 {[%clk 0:02:01]}  a5 {[%clk 0:01:27]} 19. Be2 {[%clk 0:01:59]}  a4 {[%clk 0:00:56]} 20. Bc4 {[%clk 0:01:23]}  axb3 {[%clk 0:00:55]} 21. axb3 {[%clk 0:01:21]}  Nxb3 {[%clk 0:00:50]} 22. Bxb6 {[%clk 0:01:08]}  Nxd2 {[%clk 0:00:49]} 23. f3 {[%clk 0:00:57]}  Nxc4 {[%clk 0:00:41]} 24. Rxc4 {[%clk 0:00:56]}  Rc8 {[%clk 0:00:36]} 25. Kf2 {[%clk 0:00:54]}  Bf8 {[%clk 0:00:32]} 26. Bc5 {[%clk 0:00:53]}  Bxc5+ {[%clk 0:00:28]} 27. Rxc5 {[%clk 0:00:54]}  f6 {[%clk 0:00:29]} 28. Ke3 {[%clk 0:00:51]}  Kf7 {[%clk 0:00:29]} 29. g3 {[%clk 0:00:51]}  Ke6 {[%clk 0:00:29]} 30. f4 {[%clk 0:00:51]}  Kd6 {[%clk 0:00:28]} 31. Rc2 {[%clk 0:00:43]}  h5 {[%clk 0:00:28]} 32. Rd2+ {[%clk 0:00:41]}  Ke6 {[%clk 0:00:27]} 33. h3 {[%clk 0:00:38]}  c5 {[%clk 0:00:27]} 34. fxe5 {[%clk 0:00:38]}  Kxe5 {[%clk 0:00:20]} 35. g4 {[%clk 0:00:26]}  hxg4 {[%clk 0:00:20]} 36. hxg4 {[%clk 0:00:27]}  c4 {[%clk 0:00:20]} 37. Rd5+ {[%clk 0:00:26]}  Ke6 {[%clk 0:00:21]} 38. Kd2 {[%clk 0:00:25]}  c3+ {[%clk 0:00:19]} 39. Kc2 {[%clk 0:00:25]}  Rc4 {[%clk 0:00:20]} 40. Ra5 {[%clk 0:00:22]}  Rxe4 {[%clk 0:00:20]} 41. g5 {[%clk 0:00:22]}  f5 {[%clk 0:00:19]} 42. Ra6+ {[%clk 0:00:22]}  Kf7 {[%clk 0:00:19]} 43. Kxc3 {[%clk 0:00:15]}  Rg4 {[%clk 0:00:19]} 44. Ra7+ {[%clk 0:00:15]}  Ke6 {[%clk 0:00:18]} 45. Ra6+ {[%clk 0:00:15]}  Ke5 {[%clk 0:00:15]} 46. Ra7 {[%clk 0:00:15]}  Rxg5 {[%clk 0:00:14]} 47. Kd3 {[%clk 0:00:15]}  Rg3+ {[%clk 0:00:14]} 48. Ke2 {[%clk 0:00:16]}  g5 {[%clk 0:00:13]} 49. Kf2 {[%clk 0:00:16]}  Rb3 {[%clk 0:00:13]} 50. Rg7 {[%clk 0:00:16]}  g4 {[%clk 0:00:13]} 51. Re7+ {[%clk 0:00:17]}  Kf4 {[%clk 0:00:13]} 52. Re2 {[%clk 0:00:17]}  Kg5 {[%clk 0:00:11]} 53. Kg2 {[%clk 0:00:17]}  f4 {[%clk 0:00:11]} 54. Re5+ {[%clk 0:00:17]}  Kh4 {[%clk 0:00:12]} 55. Rc5 {[%clk 0:00:18]}  Rb2+ {[%clk 0:00:12]} 56. Kg1 {[%clk 0:00:19]}  Kg3 {[%clk 0:00:12]} 57. Rc3+ {[%clk 0:00:19]}  f3 {[%clk 0:00:12]} 58. Rc1 {[%clk 0:00:20]}  Rg2+ {[%clk 0:00:11]} 59. Kh1 {[%clk 0:00:20]}  Rh2+ {[%clk 0:00:11]} 60. Kg1 {[%clk 0:00:21]}  f2+ {[%clk 0:00:12]} 61. Kf1 {[%clk 0:00:21]}  Rh1+ {[%clk 0:00:12]} 62. Ke2 {[%clk 0:00:22]}  Rxc1 {[%clk 0:00:12]} 0-1


[Site "https://www.chess.com"]

[Event "Titled Tuesday Blitz April 05 Early 2022"]
[White "Samaganova, Aleksandra"]
[Black "Aaditya Dhingra"]
[WhiteFideId "13800221"]
[BlackFideId "25678191"]
[WhiteElo "1859"]
[BlackElo "1849"]
[Result "1-0"]
[Round "09"]
[TimeControl "180+1"]
[Date "2022.04.05"]
[WhiteClock "0:00:05"]
[BlackClock "0:00:11"]

1. c4 {[%clk 0:03:00]}  e6 {[%clk 0:02:58]} 2. Nc3 {[%clk 0:03:00]}  d5 {[%clk 0:02:57]} 3. e3 {[%clk 0:03:00]}  Nf6 {[%clk 0:02:56]} 4. Nf3 {[%clk 0:03:00]}  Be7 {[%clk 0:02:56]} 5. d4 {[%clk 0:02:59]}  O-O {[%clk 0:02:55]} 6. cxd5 {[%clk 0:02:59]}  exd5 {[%clk 0:02:55]} 7. Bd3 {[%clk 0:02:59]}  c6 {[%clk 0:02:53]} 8. h3 {[%clk 0:02:57]}  Re8 {[%clk 0:02:50]} 9. O-O {[%clk 0:02:56]}  Nbd7 {[%clk 0:02:49]} 10. a3 {[%clk 0:02:55]}  Bd6 {[%clk 0:02:47]} 11. b4 {[%clk 0:02:55]}  Ne4 {[%clk 0:02:45]} 12. Qc2 {[%clk 0:02:51]}  f5 {[%clk 0:02:37]} 13. b5 {[%clk 0:02:41]}  Ndf6 {[%clk 0:02:35]} 14. bxc6 {[%clk 0:02:38]}  bxc6 {[%clk 0:02:34]} 15. a4 {[%clk 0:02:07]}  Qa5 {[%clk 0:02:13]} 16. Bd2 {[%clk 0:01:58]}  Bb4 {[%clk 0:02:05]} 17. Nb1 {[%clk 0:01:48]}  Bxd2 {[%clk 0:01:55]} 18. Nfxd2 {[%clk 0:01:42]}  Ba6 {[%clk 0:01:49]} 19. Bxa6 {[%clk 0:01:38]}  Qxa6 {[%clk 0:01:50]} 20. Nxe4 {[%clk 0:01:33]}  fxe4 {[%clk 0:01:46]} 21. Rc1 {[%clk 0:01:29]}  Rec8 {[%clk 0:01:41]} 22. Nd2 {[%clk 0:01:18]}  Rab8 {[%clk 0:01:40]} 23. Nb3 {[%clk 0:01:08]}  Nd7 {[%clk 0:01:34]} 24. Nc5 {[%clk 0:01:07]}  Nxc5 {[%clk 0:01:33]} 25. Qxc5 {[%clk 0:01:08]}  Rb6 {[%clk 0:01:27]} 26. Qd6 {[%clk 0:00:58]}  Qb7 {[%clk 0:01:11]} 27. Qe6+ {[%clk 0:00:48]}  Kh8 {[%clk 0:01:06]} 28. Rc5 {[%clk 0:00:48]}  Rb1+ {[%clk 0:00:58]} 29. Rxb1 {[%clk 0:00:47]}  Qxb1+ {[%clk 0:00:58]} 30. Kh2 {[%clk 0:00:48]}  Qb8+ {[%clk 0:00:55]} 31. g3 {[%clk 0:00:48]}  Qc7 {[%clk 0:00:52]} 32. h4 {[%clk 0:00:42]}  h6 {[%clk 0:00:50]} 33. a5 {[%clk 0:00:31]}  Qb7 {[%clk 0:00:47]} 34. Kg2 {[%clk 0:00:26]}  a6 {[%clk 0:00:42]} 35. Rc3 {[%clk 0:00:20]}  Qc7 {[%clk 0:00:37]} 36. Rb3 {[%clk 0:00:18]}  Rf8 {[%clk 0:00:34]} 37. Rb6 {[%clk 0:00:15]}  Rf6 {[%clk 0:00:32]} 38. Qe8+ {[%clk 0:00:13]}  Kh7 {[%clk 0:00:32]} 39. h5 {[%clk 0:00:10]}  Qd6 {[%clk 0:00:18]} 40. Rb8 {[%clk 0:00:06]}  Rxf2+ {[%clk 0:00:10]} 41. Kxf2 {[%clk 0:00:06]}  Qf6+ {[%clk 0:00:11]} 42. Kg1 {[%clk 0:00:05]} 1-0


[Site "https://www.chess.com"]